{"text_format":"3","workbook":"xlsx","n_sheets":3,"sheets":["Protokoł 2020","Protokoł 1-roczny 2021","DANE"],"not_rendered":{"images":2,"macros":1,"defined_names":12,"comments":2},"read":"whole","date_system":"1900"}

{"sheet":"Protokoł 2020","index":0,"n_rows":223,"n_cols":14,"rows_kept":223,"hidden":true,"merged":[[2,1,2,9],[3,1,3,9],[4,3,4,4],[5,3,5,9],[7,1,7,3],[7,4,7,10],[8,1,8,3],[8,4,8,10],[9,1,9,3],[9,4,9,5],[9,6,9,7],[9,8,9,10],[10,0,10,1],[10,2,10,10],[11,1,11,10],[12,1,12,10],[13,1,13,10],[14,1,14,10],[16,3,16,4],[16,8,16,9],[17,0,28,1],[17,5,17,10],[18,5,18,10],[19,5,19,10],[20,5,20,10],[21,5,21,10],[22,5,22,10],[23,5,23,10],[24,5,24,10],[25,5,25,10],[26,5,26,10],[27,5,27,10],[28,5,28,10],[29,0,30,1],[29,2,30,10],[31,1,31,10],[32,0,32,1],[32,5,32,7],[32,8,32,10],[33,0,33,1],[33,2,33,3],[33,5,33,7],[33,8,33,9],[34,0,34,1],[34,2,34,4],[34,5,34,7],[34,8,34,10],[35,0,35,1],[35,5,35,7],[36,0,37,1],[36,2,37,3],[36,4,37,4],[36,5,36,7],[36,8,36,9],[37,5,37,7],[38,0,38,1],[39,0,39,1],[40,0,41,1],[41,3,41,10],[42,0,47,1],[45,2,45,10],[46,2,46,10],[48,1,48,10],[51,1,51,2],[51,5,51,7],[51,8,51,10],[52,1,52,10],[53,1,53,10],[54,1,54,10],[56,1,56,10],[57,1,57,10],[58,0,58,2],[58,3,58,5],[58,6,58,8],[58,9,58,10],[59,0,59,2],[59,3,59,5],[59,6,59,8],[59,9,59,10],[60,1,60,10],[62,0,62,2],[62,3,62,5],[62,6,62,8],[63,0,63,8],[64,1,64,2],[64,3,64,5],[64,6,64,7],[65,1,65,2],[65,3,65,5],[65,6,65,7],[66,1,66,2],[66,3,66,5],[66,6,66,7],[67,0,67,8],[68,3,68,5],[68,6,68,7],[69,3,69,5],[69,6,69,7],[70,3,70,5],[70,6,70,7],[71,3,71,5],[71,6,71,7],[72,1,72,2],[72,3,72,5],[72,6,72,7],[73,1,73,2],[73,3,73,5],[73,6,73,7],[74,0,74,8],[75,1,75,2],[75,3,75,5],[75,6,75,7],[76,1,76,2],[76,3,76,5],[76,6,76,7],[77,1,77,2],[77,3,77,5],[77,6,77,7],[78,1,78,2],[78,3,78,5],[78,6,78,7],[79,0,79,8],[80,1,80,2],[80,3,80,5],[80,6,80,7],[81,1,81,2],[81,3,81,5],[81,6,81,7],[82,1,82,2],[82,3,82,5],[82,6,82,7],[83,1,83,2],[83,3,83,5],[83,6,83,7],[84,1,84,2],[84,3,84,5],[84,6,84,7],[85,1,85,2],[85,3,85,5],[85,6,85,7],[86,0,86,8],[87,1,87,2],[87,3,87,5],[87,6,87,7],[88,1,88,2],[88,3,88,5],[88,6,88,7],[89,1,89,2],[89,3,89,5],[89,6,89,7],[90,1,90,2],[90,3,90,5],[90,6,90,7],[91,1,91,2],[91,3,91,5],[91,6,91,7],[92,1,92,2],[92,3,92,5],[92,6,92,7],[93,1,93,2],[93,3,93,5],[93,6,93,7],[94,0,94,8],[95,1,95,2],[95,3,95,5],[95,6,95,7],[96,1,96,2],[96,3,96,5],[96,6,96,7],[97,1,97,2],[97,3,97,5],[97,6,97,7],[98,1,98,2],[98,3,98,5],[98,6,98,7],[99,1,99,2],[99,3,99,5],[99,6,99,7],[100,1,100,2],[100,3,100,5],[100,6,100,7],[101,1,101,2],[101,3,101,5],[101,6,101,7],[102,0,102,8],[103,1,103,2],[103,3,103,5],[103,6,103,7],[104,1,104,2],[104,3,104,5],[104,6,104,7],[105,1,105,2],[105,3,105,5],[105,6,105,7],[106,0,106,8],[107,1,107,2],[107,3,107,5],[107,6,107,7],[108,1,108,2],[108,3,108,5],[108,6,108,7],[109,1,109,2],[109,3,109,5],[109,6,109,7],[110,1,110,2],[110,3,110,5],[110,6,110,7],[111,1,111,2],[111,3,111,5],[111,6,111,7],[112,0,112,8],[114,1,114,2],[114,3,114,5],[114,6,114,7],[115,0,115,8],[117,0,117,8],[118,1,118,2],[118,3,118,5],[118,6,118,7],[119,1,119,2],[119,3,119,5],[119,6,119,7],[120,1,120,2],[120,3,120,5],[120,6,120,7],[121,1,121,2],[121,3,121,5],[121,6,121,7],[122,1,122,2],[122,3,122,5],[122,6,122,7],[123,1,123,2],[123,3,123,5],[123,6,123,7],[124,1,124,2],[124,3,124,5],[124,6,124,7],[125,1,125,2],[125,3,125,5],[125,6,125,7],[126,1,126,2],[126,3,126,5],[126,6,126,7],[127,0,127,8],[128,1,128,2],[128,3,128,5],[128,6,128,7],[129,1,129,2],[129,3,129,5],[129,6,129,7],[130,1,130,2],[130,3,130,5],[130,6,130,7],[131,1,131,2],[131,3,131,5],[131,6,131,7],[132,0,132,8],[133,1,133,2],[133,3,133,5],[133,6,133,7],[134,1,134,2],[134,3,134,5],[134,6,134,7],[135,1,135,2],[135,3,135,5],[135,6,135,7],[136,1,136,2],[136,3,136,5],[136,6,136,7],[137,1,137,2],[137,3,137,5],[137,6,137,7],[138,0,138,8],[139,1,139,2],[139,3,139,5],[139,6,139,7],[140,0,140,10],[141,0,141,1],[142,0,142,10],[143,0,143,1],[145,1,145,10],[147,1,147,7],[148,1,148,7],[149,1,149,7],[150,1,150,7],[151,1,151,7],[152,1,152,7],[153,1,153,7],[156,0,156,10],[157,0,157,10],[158,0,158,10],[159,0,159,10],[160,0,160,10],[161,0,161,10],[162,0,162,10],[163,1,163,10],[164,0,164,10],[165,1,165,8],[165,9,165,10],[166,1,166,8],[166,9,166,10],[167,1,167,8],[167,9,167,10],[168,1,168,8],[168,9,168,10],[169,1,169,8],[169,9,169,10],[170,1,170,8],[170,9,170,10],[171,9,171,10],[172,1,172,8],[172,9,172,10],[173,1,173,8],[173,9,173,10],[174,1,174,10],[176,1,176,4],[177,1,177,4],[178,1,178,4],[178,6,178,9],[180,1,180,4],[181,1,181,4],[182,1,182,4],[182,6,182,9],[184,1,184,4],[185,1,185,4],[186,1,186,4],[186,6,186,9],[187,1,187,10],[188,0,188,10],[189,1,189,2],[189,3,189,4],[189,5,189,6],[189,7,189,8],[189,9,189,10],[190,1,190,2],[190,3,190,4],[190,5,190,6],[190,7,190,8],[190,9,190,10],[191,1,191,2],[191,3,191,4],[191,5,191,6],[191,7,191,8],[191,9,191,10],[192,1,192,2],[192,3,192,4],[192,5,192,6],[192,7,192,8],[192,9,192,10],[193,1,193,2],[193,3,193,4],[193,5,193,6],[193,7,193,8],[193,9,193,10],[194,1,194,2],[194,3,194,4],[194,5,194,6],[194,7,194,8],[194,9,194,10],[195,1,195,2],[195,3,195,4],[195,5,195,6],[195,7,195,8],[195,9,195,10],[196,1,196,2],[196,3,196,4],[196,5,196,6],[196,7,196,8],[196,9,196,10],[197,1,197,2],[197,3,197,4],[197,5,197,6],[197,7,197,8],[197,9,197,10],[198,1,198,2],[198,3,198,4],[198,5,198,6],[198,7,198,8],[198,9,198,10],[200,1,200,10],[201,1,201,10],[204,1,204,10],[206,0,206,10],[208,1,208,4],[208,6,208,9],[209,1,209,4],[209,6,209,9],[212,1,212,4],[212,6,212,9],[213,1,213,4],[213,6,213,9]]}
[]
[{"$nulls":5},"PROTOKÓŁ Nr: ",1,{"$f":"CONCATENATE(\"/\",D5,\"/\",E10,\"/\",YEAR(D17))","v":"/1/8696/2021"}]
[null,"z okresowej kontroli rocznej stanu technicznego"]
[null,"obiektu budowlanego"]
[null,"Nr:",null,1]
[null,"Nazwa:",null,"koszarowo-biurowy"]
[]
[null,"ZARZĄDCA:",null,null,"RZI Lublin, 20-020 Lublin, ul. Lipowa 1A"]
[null,"ADMINISTRATOR ",null,null,"34 Wojskowy Oddział Gospodarczy w Rzeszowie"]
[null,"Nr kompleksu wojskowego:",null,null,8696,null,"Miejscowość:",null,"Dębica"]
["Podstawa ",null,"art. 62 ust. 1 pkt 1 ustawy z dnia 7 lipca 1994 roku - Prawo budowlane (Dz. U. z 2017 r. poz. 1332 z późn. zm.),\nart. 23 ust. 1 ustawy z dnia 29 sierpnia 2014 r. o charakterystyce energetycznej budynków (Dz. U. z 2017 r., poz. 1498 z późn. zm.)"]
["I.","Zakres kontroli obejmuje sprawdzenie"]
[1,"Wykonania zaleceń z poprzednich kontroli,"]
[2,"Elementów budynku, budowli i instalacji narażonych na szkodliwe wpływy atmosferyczne i niszczące działania czynników występujących podczas użytkowania budynku, których uszkodzenia mogą powodować zagrożenie dla: bezpieczeństwa osób, środowiska oraz konstrukcji budynku"]
[3,"Instalacji i urządzeń służących ochronie środowiska,"]
[4,"Instalacji gazowych oraz przewodów kominowych (dymowych, spalinowych i wentylacyjnych);"]
[null,"Data kontroli:",null,{"$f":"TODAY()","v":"2021-06-30"},{"$nulls":3},"Data następnej kontroli:",{"$f":"D17+365","v":"2022-06-30"}]
["Skład zespołu przeprowadza-jącego kontrolę",null,"Imię, nazwisko",null,null,"Jerzy SOŁEK"]
[null,null,"nr uprawnień budowlanych",null,null,"Upr. Bud. Nr 265/69, 169/85"]
[null,null,"przynależność do OIIB",null,null,"PDK/BO/0196/03"]
[null,null,"/br. budowlana/"]
[null,null,"Imię, nazwisko",null,null,"Lucyna DZIUBEK"]
[null,null,"nr uprawnień budowlanych",null,null,"Upr. Bud. Nr S-291/94"]
[null,null,"przynależność do OIIB",null,null,"PDK/IS/0151/07"]
[null,null,"/br. sanitarna/"]
[null,null,"Imię, nazwisko",null,null,"Grzegorz DEPA"]
[null,null,"nr uprawnień budowlanych",null,null,"D-254/078/15, E-946/078/15"]
[null,null,"przynależność do OIIB"]
[null,null,"/br. elektryczna/"]
["Przy udziale"]
[]
["II.","Informacje ogólne o obiekcie budowlanym"]
["Pozwolenie na uzytkowanie",{"$nulls":4},"Rok budowy",null,null,"ok. 1870",{"$nulls":3},2]
["Powierzchnia zabudowy",null,{"v":733,"d":"733.00"},null,"m2","Powierzchnia użytkowa",null,null,1158,null,"m2"]
["Funkcja obiektu",null,{"$f":"D6","v":"koszarowo-biurowy"},null,null,"Garnizon",null,null,"Rzeszów"]
["Obiekt uzytkowany zgodnie z przeznaczeniem",{"$nulls":4},"Obiekt objęty opieką konserwatorską",{"$nulls":6},1,1]
["Kubatura",null,6573,null,"m3","Wysokość",null,null,12.98,null,"m"]
[{"$nulls":5},"Ilość kondygn. nadziem. /podziem.",null,null,2,"/",0]
["Strefa Ochronna",{"$nulls":11},2,2]
["Strefa ograniczonego użytkowania",{"$nulls":11},2,2]
["Rodzaj konstrukcji",{"$nulls":11},2]
[null,null,"Inna opis:"]
["Wyposażenie",{"$nulls":11},true]
[{"$nulls":12},false]
[{"$nulls":12},false]
[{"$nulls":12},true]
[]
[]
["III","Sprawdzenie wykonania zaleceń z poprzedniej kontroli"]
["Przed rozpoczęciem kontroli zapoznano się z:"]
[1,"Protokołami z poprzedniej kontroli:"]
[null,"1/8696/1/2019",null,"data:","2019-05-14","przeprowadzonej przez",null,null,"Józef Madera, Lucyna Dziubek, "]
[null,"Grzegorz Depa"]
[]
[]
[2,"Innymi dokumentami mającymi znaczenie dla oceny stanu technicznego:"]
[null,"Książka obiektu"]
[]
["Element, urządzenie, instalacja",null,null,"Zalecenia",null,null,"Opis realizacji zaleceń",null,null,"Uwagi"]
["Protokół nr 1/8696/1/2019 z okresowej kontroli rocznej stanu technicznego",null,null,"1. Wykonać poziomą izolację fundamentów\n2. Docieplić budynek\n3. Oczyścić rynny",null,null,"nie wykonano\n\nnie wykonano\nw trakcie "]
["IV","Ustalenie oraz wnioski po sprawdzeniu stanu technicznego:"]
["W trakcie kontroli ustalono:"]
["Element, urządzenie, instalacja",null,null,"Materiał, sposób wykonania, mocowania, wyposażenie",null,null,"Rozmiar zużycia, uszkodzenia\n\n>25% - stan zadowlający\n25%<>50% - stan nie zadowalający\n50%> - stan zły",null,null,"Zużycie\n[%]","UWAGI\nA - 1 rok\nB - 2 lata\nC - 4 lata"]
["Zewnętrzne warstwy przegród zewnętrznych "]
[1,"Tynki",null,"cementowo-wapienne",null,null,"bez uwag",null,{"$f":"IF(J65=DANE!$I$3,DANE!$J$3,IF(J65<=DANE!$I$4,DANE!$J$4,IF(J65>DANE!$I$4,IF(J65<=DANE!$I$5,DANE!$J$5,IF(J65>DANE!$I$5,DANE!$J$8)))))","v":"Zadowalający"},{"v":0.2,"d":"20.00%"}]
[2,"Okładziny",null,"nie występują",{"$nulls":4},{"$f":"IF(J66=DANE!$I$3,DANE!$J$3,IF(J66<=DANE!$I$4,DANE!$J$4,IF(J66>DANE!$I$4,IF(J66<=DANE!$I$5,DANE!$J$5,IF(J66>DANE!$I$5,DANE!$J$8)))))","v":"Nie występuje"}]
[3,{"$nulls":7},{"$f":"IF(J67=DANE!$I$3,DANE!$J$3,IF(J67<=DANE!$I$4,DANE!$J$4,IF(J67>DANE!$I$4,IF(J67<=DANE!$I$5,DANE!$J$5,IF(J67>DANE!$I$5,DANE!$J$8)))))","v":"Nie występuje"}]
["Elelementy ścian zewnętrznych"]
[1,"gzymsy",null,"żelbetowe",null,null,"bez uwag",null,{"$f":"IF(J69=DANE!$I$3,DANE!$J$3,IF(J69<=DANE!$I$4,DANE!$J$4,IF(J69>DANE!$I$4,IF(J69<=DANE!$I$5,DANE!$J$5,IF(J69>DANE!$I$5,DANE!$J$8)))))","v":"Zadowalający"},{"v":0.1,"d":"10.00%"}]
[2,"attyki",null,"murowane z cegły",null,null,"bez uwag",null,{"$f":"IF(J70=DANE!$I$3,DANE!$J$3,IF(J70<=DANE!$I$4,DANE!$J$4,IF(J70>DANE!$I$4,IF(J70<=DANE!$I$5,DANE!$J$5,IF(J70>DANE!$I$5,DANE!$J$8)))))","v":"Zadowalający"},{"v":0.1,"d":"10.00%"}]
[3,"filary",null,"nie występuje",{"$nulls":4},{"$f":"IF(J71=DANE!$I$3,DANE!$J$3,IF(J71<=DANE!$I$4,DANE!$J$4,IF(J71>DANE!$I$4,IF(J71<=DANE!$I$5,DANE!$J$5,IF(J71>DANE!$I$5,DANE!$J$8)))))","v":"Nie występuje"}]
[4,"balkony, loggie",null,"nie występuje",{"$nulls":4},{"$f":"IF(J72=DANE!$I$3,DANE!$J$3,IF(J72<=DANE!$I$4,DANE!$J$4,IF(J72>DANE!$I$4,IF(J72<=DANE!$I$5,DANE!$J$5,IF(J72>DANE!$I$5,DANE!$J$8)))))","v":"Nie występuje"}]
[5,"balustrady",null,"nie występuje",{"$nulls":4},{"$f":"IF(J73=DANE!$I$3,DANE!$J$3,IF(J73<=DANE!$I$4,DANE!$J$4,IF(J73>DANE!$I$4,IF(J73<=DANE!$I$5,DANE!$J$5,IF(J73>DANE!$I$5,DANE!$J$8)))))","v":"Nie występuje"}]
[6,{"$nulls":7},{"$f":"IF(J74=DANE!$I$3,DANE!$J$3,IF(J74<=DANE!$I$4,DANE!$J$4,IF(J74>DANE!$I$4,IF(J74<=DANE!$I$5,DANE!$J$5,IF(J74>DANE!$I$5,DANE!$J$8)))))","v":"Nie występuje"}]
["Urządzenia i instalacje zamocowane do ścian i dachu"]
[1,"szyldy, reklamy",null,"nie występuje",{"$nulls":4},{"$f":"IF(J76=DANE!$I$3,DANE!$J$3,IF(J76<=DANE!$I$4,DANE!$J$4,IF(J76>DANE!$I$4,IF(J76<=DANE!$I$5,DANE!$J$5,IF(J76>DANE!$I$5,DANE!$J$8)))))","v":"Nie występuje"}]
[2,"klimatyzatory",null,"nie występuje",{"$nulls":4},{"$f":"IF(J77=DANE!$I$3,DANE!$J$3,IF(J77<=DANE!$I$4,DANE!$J$4,IF(J77>DANE!$I$4,IF(J77<=DANE!$I$5,DANE!$J$5,IF(J77>DANE!$I$5,DANE!$J$8)))))","v":"Nie występuje"}]
[3,"anteny",null,"nie występuje",{"$nulls":4},{"$f":"IF(J78=DANE!$I$3,DANE!$J$3,IF(J78<=DANE!$I$4,DANE!$J$4,IF(J78>DANE!$I$4,IF(J78<=DANE!$I$5,DANE!$J$5,IF(J78>DANE!$I$5,DANE!$J$8)))))","v":"Nie występuje"}]
[4,{"$nulls":7},{"$f":"IF(J79=DANE!$I$3,DANE!$J$3,IF(J79<=DANE!$I$4,DANE!$J$4,IF(J79>DANE!$I$4,IF(J79<=DANE!$I$5,DANE!$J$5,IF(J79>DANE!$I$5,DANE!$J$8)))))","v":"Nie występuje"}]
["Pokrycia dachowe i elementy odwodnienia"]
[1,"pokrycie dachu",null,"blacho-dachówka",null,null,"bez uwag",null,{"$f":"IF(J81=DANE!$I$3,DANE!$J$3,IF(J81<=DANE!$I$4,DANE!$J$4,IF(J81>DANE!$I$4,IF(J81<=DANE!$I$5,DANE!$J$5,IF(J81>DANE!$I$5,DANE!$J$8)))))","v":"Zadowalający"},{"v":0.06,"d":"6.00%"}]
[2,"kominy, ławy komina",null,"kominy z cegły",null,null,"bez uwag",null,{"$f":"IF(J82=DANE!$I$3,DANE!$J$3,IF(J82<=DANE!$I$4,DANE!$J$4,IF(J82>DANE!$I$4,IF(J82<=DANE!$I$5,DANE!$J$5,IF(J82>DANE!$I$5,DANE!$J$8)))))","v":"Zadowalający"},{"v":0.15,"d":"15.00%"}]
[3,"obróbki blacharskie",null,"blacha ocynk.",null,null,"bez uwag",null,{"$f":"IF(J83=DANE!$I$3,DANE!$J$3,IF(J83<=DANE!$I$4,DANE!$J$4,IF(J83>DANE!$I$4,IF(J83<=DANE!$I$5,DANE!$J$5,IF(J83>DANE!$I$5,DANE!$J$8)))))","v":"Zadowalający"},{"v":0.06,"d":"6.00%"}]
[4,"rynny",null,"blacha ocynk.",null,null,"bez uwag",null,{"$f":"IF(J84=DANE!$I$3,DANE!$J$3,IF(J84<=DANE!$I$4,DANE!$J$4,IF(J84>DANE!$I$4,IF(J84<=DANE!$I$5,DANE!$J$5,IF(J84>DANE!$I$5,DANE!$J$8)))))","v":"Zadowalający"},{"v":0.11,"d":"11.00%"}]
[5,"rury spustowe",null,"blacha ocynk.",null,null,"bez uwag",null,{"$f":"IF(J85=DANE!$I$3,DANE!$J$3,IF(J85<=DANE!$I$4,DANE!$J$4,IF(J85>DANE!$I$4,IF(J85<=DANE!$I$5,DANE!$J$5,IF(J85>DANE!$I$5,DANE!$J$8)))))","v":"Zadowalający"},{"v":0.11,"d":"11.00%"}]
[6,{"$nulls":7},{"$f":"IF(J86=DANE!$I$3,DANE!$J$3,IF(J86<=DANE!$I$4,DANE!$J$4,IF(J86>DANE!$I$4,IF(J86<=DANE!$I$5,DANE!$J$5,IF(J86>DANE!$I$5,DANE!$J$8)))))","v":"Nie występuje"}]
["Instalacje i urządzenia służące ochronie środowiska"]
[1,"kanalizacja sanitarna",null,"PCV, żeliwo",null,null,"przestarzała",null,{"$f":"IF(J88=DANE!$I$3,DANE!$J$3,IF(J88<=DANE!$I$4,DANE!$J$4,IF(J88>DANE!$I$4,IF(J88<=DANE!$I$5,DANE!$J$5,IF(J88>DANE!$I$5,DANE!$J$8)))))","v":"Zupełnie zły"},{"v":0.3,"d":"30.00%"}]
[2,"kanalizacja deszczowa",null,"betonowa",null,null,"przestarzała",null,{"$f":"IF(J89=DANE!$I$3,DANE!$J$3,IF(J89<=DANE!$I$4,DANE!$J$4,IF(J89>DANE!$I$4,IF(J89<=DANE!$I$5,DANE!$J$5,IF(J89>DANE!$I$5,DANE!$J$8)))))","v":"Zupełnie zły"},{"v":0.3,"d":"30.00%"}]
[3,"zbiorniki bezodpływowe",null,"nie występuje",{"$nulls":4},{"$f":"IF(J90=DANE!$I$3,DANE!$J$3,IF(J90<=DANE!$I$4,DANE!$J$4,IF(J90>DANE!$I$4,IF(J90<=DANE!$I$5,DANE!$J$5,IF(J90>DANE!$I$5,DANE!$J$8)))))","v":"Nie występuje"}]
[4,"urządzenia do oczyszczania ścieków",null,"nie występuje",{"$nulls":4},{"$f":"IF(J91=DANE!$I$3,DANE!$J$3,IF(J91<=DANE!$I$4,DANE!$J$4,IF(J91>DANE!$I$4,IF(J91<=DANE!$I$5,DANE!$J$5,IF(J91>DANE!$I$5,DANE!$J$8)))))","v":"Nie występuje"}]
[5,"urządzenia filtrujące",null,"nie występuje",{"$nulls":4},{"$f":"IF(J92=DANE!$I$3,DANE!$J$3,IF(J92<=DANE!$I$4,DANE!$J$4,IF(J92>DANE!$I$4,IF(J92<=DANE!$I$5,DANE!$J$5,IF(J92>DANE!$I$5,DANE!$J$8)))))","v":"Nie występuje"}]
[6,"urządzenia wygłuszające",null,"nie występuje",{"$nulls":4},{"$f":"IF(J93=DANE!$I$3,DANE!$J$3,IF(J93<=DANE!$I$4,DANE!$J$4,IF(J93>DANE!$I$4,IF(J93<=DANE!$I$5,DANE!$J$5,IF(J93>DANE!$I$5,DANE!$J$8)))))","v":"Nie występuje"}]
[7,"itd.",{"$nulls":6},{"$f":"IF(J94=DANE!$I$3,DANE!$J$3,IF(J94<=DANE!$I$4,DANE!$J$4,IF(J94>DANE!$I$4,IF(J94<=DANE!$I$5,DANE!$J$5,IF(J94>DANE!$I$5,DANE!$J$8)))))","v":"Nie występuje"}]
["Instalacja gazowa"]
[1,"przewody",null,"nie występuje",{"$nulls":4},{"$f":"IF(J96=DANE!$I$3,DANE!$J$3,IF(J96<=DANE!$I$4,DANE!$J$4,IF(J96>DANE!$I$4,IF(J96<=DANE!$I$5,DANE!$J$5,IF(J96>DANE!$I$5,DANE!$J$8)))))","v":"Nie występuje"}]
[2,"instalacje sygnalizujące",null,"nie występuje",{"$nulls":4},{"$f":"IF(J97=DANE!$I$3,DANE!$J$3,IF(J97<=DANE!$I$4,DANE!$J$4,IF(J97>DANE!$I$4,IF(J97<=DANE!$I$5,DANE!$J$5,IF(J97>DANE!$I$5,DANE!$J$8)))))","v":"Nie występuje"}]
[3,"urządzenia odcinające",null,"nie występuje",{"$nulls":4},{"$f":"IF(J98=DANE!$I$3,DANE!$J$3,IF(J98<=DANE!$I$4,DANE!$J$4,IF(J98>DANE!$I$4,IF(J98<=DANE!$I$5,DANE!$J$5,IF(J98>DANE!$I$5,DANE!$J$8)))))","v":"Nie występuje"}]
[4,"zawór główny",null,"nie występuje",{"$nulls":4},{"$f":"IF(J99=DANE!$I$3,DANE!$J$3,IF(J99<=DANE!$I$4,DANE!$J$4,IF(J99>DANE!$I$4,IF(J99<=DANE!$I$5,DANE!$J$5,IF(J99>DANE!$I$5,DANE!$J$8)))))","v":"Nie występuje"}]
[5,"urządzenia redukcyjne",null,"nie występuje",{"$nulls":4},{"$f":"IF(J100=DANE!$I$3,DANE!$J$3,IF(J100<=DANE!$I$4,DANE!$J$4,IF(J100>DANE!$I$4,IF(J100<=DANE!$I$5,DANE!$J$5,IF(J100>DANE!$I$5,DANE!$J$8)))))","v":"Nie występuje"}]
[6,"gazomierz",null,"nie występuje",{"$nulls":4},{"$f":"IF(J101=DANE!$I$3,DANE!$J$3,IF(J101<=DANE!$I$4,DANE!$J$4,IF(J101>DANE!$I$4,IF(J101<=DANE!$I$5,DANE!$J$5,IF(J101>DANE!$I$5,DANE!$J$8)))))","v":"Nie występuje"}]
[7,"zabezpieczenie antykorozyjne i kolorystyka instalacji",null,"nie występuje",{"$nulls":4},{"$f":"IF(J102=DANE!$I$3,DANE!$J$3,IF(J102<=DANE!$I$4,DANE!$J$4,IF(J102>DANE!$I$4,IF(J102<=DANE!$I$5,DANE!$J$5,IF(J102>DANE!$I$5,DANE!$J$8)))))","v":"Nie występuje"}]
["Instalacja piorunochronna"]
[1,"Zwody poziome",null,"FeZn",null,null,"bez uwag",null,{"$f":"IF(J104=DANE!$I$3,DANE!$J$3,IF(J104<=DANE!$I$4,DANE!$J$4,IF(J104>DANE!$I$4,IF(J104<=DANE!$I$5,DANE!$J$5,IF(J104>DANE!$I$5,DANE!$J$8)))))","v":"Zadowalający"},{"v":0.1,"d":"10.00%"}]
[2,"Zwody pionowe.\nPrzewody odprowadz.",null,"FeZn",null,null,"bez uwag",null,{"$f":"IF(J105=DANE!$I$3,DANE!$J$3,IF(J105<=DANE!$I$4,DANE!$J$4,IF(J105>DANE!$I$4,IF(J105<=DANE!$I$5,DANE!$J$5,IF(J105>DANE!$I$5,DANE!$J$8)))))","v":"Zadowalający"},{"v":0.1,"d":"10.00%"}]
[3,"Uziemienie",null,"FeZn",null,null,"bez uwag",null,{"$f":"IF(J106=DANE!$I$3,DANE!$J$3,IF(J106<=DANE!$I$4,DANE!$J$4,IF(J106>DANE!$I$4,IF(J106<=DANE!$I$5,DANE!$J$5,IF(J106>DANE!$I$5,DANE!$J$8)))))","v":"Zadowalający"},{"v":0.1,"d":"10.00%"}]
["Instalacja elektryczna"]
[1,"złacza kablowe",null,"ZK3a z wyłącznikiem ppoż.",null,null,"bez uwag",null,{"$f":"IF(J108=DANE!$I$3,DANE!$J$3,IF(J108<=DANE!$I$4,DANE!$J$4,IF(J108>DANE!$I$4,IF(J108<=DANE!$I$5,DANE!$J$5,IF(J108>DANE!$I$5,DANE!$J$8)))))","v":"Zadowalający"},{"v":0.08,"d":"8.00%"}]
[2,"wewnętrzne linie zasilające",null,"wykonane przewodem YDY",null,null,"bez uwag",null,{"$f":"IF(J109=DANE!$I$3,DANE!$J$3,IF(J109<=DANE!$I$4,DANE!$J$4,IF(J109>DANE!$I$4,IF(J109<=DANE!$I$5,DANE!$J$5,IF(J109>DANE!$I$5,DANE!$J$8)))))","v":"Zadowalający"},{"v":0.1,"d":"10.00%"}]
[3,"rozdzielnice",null,"wnękowe z zabezp. Typ \"S\" oraz wyłącznikami różnicowoprądowymi",null,null,"bez uwag",null,{"$f":"IF(J110=DANE!$I$3,DANE!$J$3,IF(J110<=DANE!$I$4,DANE!$J$4,IF(J110>DANE!$I$4,IF(J110<=DANE!$I$5,DANE!$J$5,IF(J110>DANE!$I$5,DANE!$J$8)))))","v":"Zadowalający"},{"v":0.08,"d":"8.00%"}]
[4,"instalalacja oświetlenia i gniazd wtykowych",null,"p/t przewodami YDY 3x1,5 oraz 3x2,5, osprzęt p/t, oprawy jarzeniowe i zarowe w sanitariatach",null,null,"bez uwag",null,{"$f":"IF(J111=DANE!$I$3,DANE!$J$3,IF(J111<=DANE!$I$4,DANE!$J$4,IF(J111>DANE!$I$4,IF(J111<=DANE!$I$5,DANE!$J$5,IF(J111>DANE!$I$5,DANE!$J$8)))))","v":"Zadowalający"},{"v":0.12,"d":"12.00%"}]
[5,"instalacja siłowa",null,"przewód YDY z osprzętem n/t",null,null,"bez uwag",null,{"$f":"IF(J112=DANE!$I$3,DANE!$J$3,IF(J112<=DANE!$I$4,DANE!$J$4,IF(J112>DANE!$I$4,IF(J112<=DANE!$I$5,DANE!$J$5,IF(J112>DANE!$I$5,DANE!$J$8)))))","v":"Zadowalający"},{"v":0.1,"d":"10.00%"}]
["Instalacja gazowa"]
[{"$nulls":12},2,2]
[1,null,null,"nie występuje",{"$nulls":4},{"$f":"IF(J115=DANE!$I$3,DANE!$J$3,IF(J115<=DANE!$I$4,DANE!$J$4,IF(J115>DANE!$I$4,IF(J115<=DANE!$I$5,DANE!$J$5,IF(J115>DANE!$I$5,DANE!$J$8)))))","v":"Nie występuje"}]
["System ochrony przeciwporażeniowej, odgromowej i przepięciowej"]
[{"$nulls":12},1,1]
["Przewody kominowe (dymne, spalinowe i wentylacyjne)"]
[1,"dymowe",null,"nie występuje",{"$nulls":4},{"$f":"IF(J119=DANE!$I$3,DANE!$J$3,IF(J119<=DANE!$I$4,DANE!$J$4,IF(J119>DANE!$I$4,IF(J119<=DANE!$I$5,DANE!$J$5,IF(J119>DANE!$I$5,DANE!$J$8)))))","v":"Nie występuje"}]
[2,"spalinowe, \ngrawitacyjne",null,"nie występuje",{"$nulls":4},{"$f":"IF(J120=DANE!$I$3,DANE!$J$3,IF(J120<=DANE!$I$4,DANE!$J$4,IF(J120>DANE!$I$4,IF(J120<=DANE!$I$5,DANE!$J$5,IF(J120>DANE!$I$5,DANE!$J$8)))))","v":"Nie występuje"}]
[3,"wentylacyjne, \ngrawitacyjne",null,"murowane z cegły",null,null,"bez uwag",null,{"$f":"IF(J121=DANE!$I$3,DANE!$J$3,IF(J121<=DANE!$I$4,DANE!$J$4,IF(J121>DANE!$I$4,IF(J121<=DANE!$I$5,DANE!$J$5,IF(J121>DANE!$I$5,DANE!$J$8)))))","v":"Zadowalający"},{"v":0.16,"d":"16.00%"}]
[4,"spalinowe, \nmechaniczne",null,"nie występuje",{"$nulls":4},{"$f":"IF(J122=DANE!$I$3,DANE!$J$3,IF(J122<=DANE!$I$4,DANE!$J$4,IF(J122>DANE!$I$4,IF(J122<=DANE!$I$5,DANE!$J$5,IF(J122>DANE!$I$5,DANE!$J$8)))))","v":"Nie występuje"}]
[5,"wentylacyjne, \nmechaniczne",null,"nie występuje",{"$nulls":4},{"$f":"IF(J123=DANE!$I$3,DANE!$J$3,IF(J123<=DANE!$I$4,DANE!$J$4,IF(J123>DANE!$I$4,IF(J123<=DANE!$I$5,DANE!$J$5,IF(J123>DANE!$I$5,DANE!$J$8)))))","v":"Nie występuje"}]
[6,"kominy wolnostojące",null,"nie występuje",{"$nulls":4},{"$f":"IF(J124=DANE!$I$3,DANE!$J$3,IF(J124<=DANE!$I$4,DANE!$J$4,IF(J124>DANE!$I$4,IF(J124<=DANE!$I$5,DANE!$J$5,IF(J124>DANE!$I$5,DANE!$J$8)))))","v":"Nie występuje"}]
[7,"kominy przemysłwoe",null,"nie występuje",{"$nulls":4},{"$f":"IF(J125=DANE!$I$3,DANE!$J$3,IF(J125<=DANE!$I$4,DANE!$J$4,IF(J125>DANE!$I$4,IF(J125<=DANE!$I$5,DANE!$J$5,IF(J125>DANE!$I$5,DANE!$J$8)))))","v":"Nie występuje"}]
[8,"urządzenia wentylacyjne",null,"nie występuje",{"$nulls":4},{"$f":"IF(J126=DANE!$I$3,DANE!$J$3,IF(J126<=DANE!$I$4,DANE!$J$4,IF(J126>DANE!$I$4,IF(J126<=DANE!$I$5,DANE!$J$5,IF(J126>DANE!$I$5,DANE!$J$8)))))","v":"Nie występuje"}]
[9,{"$nulls":7},{"$f":"IF(J127=DANE!$I$3,DANE!$J$3,IF(J127<=DANE!$I$4,DANE!$J$4,IF(J127>DANE!$I$4,IF(J127<=DANE!$I$5,DANE!$J$5,IF(J127>DANE!$I$5,DANE!$J$8)))))","v":"Nie występuje"}]
["Przejścia przyłaczy instalacyjnych przez ściany"]
[1,"c.o., c.w.u.",null,"przejścia zabezpieczone",null,null,"bez uwag",null,{"$f":"IF(J129=DANE!$I$3,DANE!$J$3,IF(J129<=DANE!$I$4,DANE!$J$4,IF(J129>DANE!$I$4,IF(J129<=DANE!$I$5,DANE!$J$5,IF(J129>DANE!$I$5,DANE!$J$8)))))","v":"Zadowalający"},{"v":0.18,"d":"18.00%"}]
[2,"Wod-Kan",null,"przejścia zabezpieczone",null,null,"bez uwag",null,{"$f":"IF(J130=DANE!$I$3,DANE!$J$3,IF(J130<=DANE!$I$4,DANE!$J$4,IF(J130>DANE!$I$4,IF(J130<=DANE!$I$5,DANE!$J$5,IF(J130>DANE!$I$5,DANE!$J$8)))))","v":"Zadowalający"},{"v":0.18,"d":"18.00%"}]
[3,"Gazowa",null,"nie występuje",{"$nulls":4},{"$f":"IF(J131=DANE!$I$3,DANE!$J$3,IF(J131<=DANE!$I$4,DANE!$J$4,IF(J131>DANE!$I$4,IF(J131<=DANE!$I$5,DANE!$J$5,IF(J131>DANE!$I$5,DANE!$J$8)))))","v":"Nie występuje"}]
[4,"Elektryczna",null,"przejścia zabezpieczone",null,null,"bez uwag",null,{"$f":"IF(J132=DANE!$I$3,DANE!$J$3,IF(J132<=DANE!$I$4,DANE!$J$4,IF(J132>DANE!$I$4,IF(J132<=DANE!$I$5,DANE!$J$5,IF(J132>DANE!$I$5,DANE!$J$8)))))","v":"Zadowalający"},{"v":0.2,"d":"20.00%"}]
["Inne elementy, urządzenia, instalacje, nawierzchnie utwardzone"]
[1,"opaska odwadniająca",null,"z kostki betonowej",null,null,"bez uwag",null,{"$f":"IF(J134=DANE!$I$3,DANE!$J$3,IF(J134<=DANE!$I$4,DANE!$J$4,IF(J134>DANE!$I$4,IF(J134<=DANE!$I$5,DANE!$J$5,IF(J134>DANE!$I$5,DANE!$J$8)))))","v":"Zadowalający"},{"v":0.1,"d":"10.00%"}]
[2,{"$nulls":7},{"$f":"IF(J135=DANE!$I$3,DANE!$J$3,IF(J135<=DANE!$I$4,DANE!$J$4,IF(J135>DANE!$I$4,IF(J135<=DANE!$I$5,DANE!$J$5,IF(J135>DANE!$I$5,DANE!$J$8)))))","v":"Nie występuje"}]
[3,{"$nulls":7},{"$f":"IF(J136=DANE!$I$3,DANE!$J$3,IF(J136<=DANE!$I$4,DANE!$J$4,IF(J136>DANE!$I$4,IF(J136<=DANE!$I$5,DANE!$J$5,IF(J136>DANE!$I$5,DANE!$J$8)))))","v":"Nie występuje"}]
[4,{"$nulls":7},{"$f":"IF(J137=DANE!$I$3,DANE!$J$3,IF(J137<=DANE!$I$4,DANE!$J$4,IF(J137>DANE!$I$4,IF(J137<=DANE!$I$5,DANE!$J$5,IF(J137>DANE!$I$5,DANE!$J$8)))))","v":"Nie występuje"}]
[5,{"$nulls":7},{"$f":"IF(J138=DANE!$I$3,DANE!$J$3,IF(J138<=DANE!$I$4,DANE!$J$4,IF(J138>DANE!$I$4,IF(J138<=DANE!$I$5,DANE!$J$5,IF(J138>DANE!$I$5,DANE!$J$8)))))","v":"Nie występuje"}]
["Estetyka obiektu i jego otoczenia"]
[1,"elewacja budynku\notoczenie budynku",null,"tynkowana, malowana\nteren dookoła uprzątnięty",null,null,"bez uwag",null,{"$f":"IF(J140=DANE!$I$3,DANE!$J$3,IF(J140<=DANE!$I$4,DANE!$J$4,IF(J140>DANE!$I$4,IF(J140<=DANE!$I$5,DANE!$J$5,IF(J140>DANE!$I$5,DANE!$J$8)))))","v":"Zadowalający"},{"v":0.15,"d":"15.00%"}]
["System ogrzewania"]
["Protokół z kontroli\nstanowi odrębne opracowanie",{"$nulls":11},1,2]
["System klimatyzacji"]
["Protokół z kontroli\nstanowi odrębne opracowanie",{"$nulls":11},2,2]
[]
["V","WNIOSKI KOŃCOWE"]
["Sprawdzenie spełnienia przez obiekt, podsatwowych wymogów pod względem"]
["a)","użytkowania zgodnie z przeznaczeniem ",{"$nulls":10},1]
["b)","bezpieczeństwa użytkowania",{"$nulls":10},1]
["c)","warunków higieniczno-sanitarnych i zdrowotnych ",{"$nulls":10},1]
["d)","ochrony środowiska",{"$nulls":10},1]
["e)","uszkodzeń biologicznych ",{"$nulls":10},1]
["f)","użytkowania w sposób zagrażający życiu lub zdrowiu ludzi i bezpieczeństwa mienia ",{"$nulls":10},1]
["g)","stanu technicznego",{"$nulls":10},1]
["h)","powodowania swym wyglądem oszpecenie otoczenia",{"$nulls":10},1]
[null,"Stan techniczny budynku spełnia* nie spełnia* dalsze, bezpieczne jego użytkowanie",{"$nulls":10},1,"Stan techniczny budynku spełnia* nie spełnia* dalsze, bezpieczne jego użytkowanie"]
["Wobec stwierdzenia uszkodzeń lub braków, które mogą spowodować: zagrożenie życia lub zdrowia ludzi, bezpieczeństwa mienia lub środowiska, a w szczególności katastrofę budowlaną, pożar, wybuch, porażenie prądem elektrycznym albo zatrucie gazem – osoba dokonująca kontroli, na podstawie art. 70 ust. 2 ustawy Prawo budowlane, niezwłocznie prześle kopię niniejszego protokołu do właściwego terytorialnie Wojewódzkiego Inspektora Nadzoru Budowlanego* ",{"$nulls":12},"Stan techniczny budynku spełnia* nie spełnia* dalsze, bezpieczne jego użytkowanie"]
["W celu usunięcia zagrożenia dla ludzi i mienia należy niezwłocznie wykonać:"]
["nie dotyczy"]
[]
[]
[]
[]
["VI","Zalecenia w zakresie"]
["Inwestycji / remontów / konserwacji / napraw\ni kolejność ich wykonywania oraz szacunkowy ich koszt wykonania"]
["Kolej.\nrealiz","Opis zaleceń ",{"$nulls":7},"szacunkowy koszt [zł]"]
["A","Wykonać poziomą izolację fundamentów",{"$nulls":7},{"v":80000,"d":"80,000 zł"}]
["A","Docieplić budynek",{"$nulls":7},{"v":150000,"d":"150,000 zł"}]
[]
[]
[]
[]
[]
[]
["VII","Oświadczenia osób przeprowadzających kontrolę"]
["w zakresie branży obólnobudowlanej"]
[null,{"$f":"IF(F18=0,\"-\",F18)","v":"Jerzy SOŁEK"}]
[null,{"$f":"IF(F19=0,\"-\",F19)","v":"Upr. Bud. Nr 265/69, 169/85"}]
[null,"imię i nazwisko oraz nr uprawnień",{"$nulls":4},"(podpis oraz pieczątka)"]
["w zakresie branży sanitarnej"]
[null,{"$f":"IF(F22=0,\"-\",F22)","v":"Lucyna DZIUBEK"}]
[null,{"$f":"IF(F23=0,\"-\",F23)","v":"Upr. Bud. Nr S-291/94"}]
[null,"imię i nazwisko oraz nr uprawnień",{"$nulls":4},"(podpis oraz pieczątka)"]
["w zakresie branży elektrycznej"]
[null,{"$f":"IF(F26=0,\"-\",F26)","v":"Grzegorz DEPA"}]
[null,{"$f":"IF(F27=0,\"-\",F27)","v":"D-254/078/15, E-946/078/15"}]
[null,"imię i nazwisko oraz nr uprawnień",{"$nulls":4},"(podpis oraz pieczątka)"]
["VIII","Załaczniki do protokołu"]
["np. protokoły pomiarów, kserokopie uprawnień do wykonywania kontroli, dokumentacja fotograficzna wykonana w toku kontroli,  (elementów zewnętrznych, wewnętrznych i konstrukcyjnych)"]
["Lp","Rodzaj pomiaru",null,"Nr protokołu",null,"Data pomiaru",null,"Data ważności",null,"Uwagi"]
[1,"badanie hydrantów ppoż.",{"$nulls":3},"25.11.2019",null,"11.2020",null,"Ksiązka obiektu"]
[2,"sprawdzenie skuteczności działania wyłączników różnicowoprądowych",null,"1/2018/WR",null,"04.12.2018",null,"04.12.20236",null,"Ksiązka obiektu"]
[3,"skuteczności ochrony przeciwporażeniowej w instalacjach elektrycznych z zabezpieczeniami nadprądowymi",null,"1(Węz. C.)/2019/PZ",null,"04.12.2019",null,"03.12.2020",null,"Ksiązka obiektu"]
[4,"pomiary rezystancji izolacji instalacji elektrycznych",null,"1/2018/IZ",null,"04.12.2018",null,"04.12.2023",null,"Ksiązka obiektu"]
[5,"skuteczności ochrony przeciwporażeniowej w instalacjach elektrycznych z zabezpieczeniami nadprądowymi",null,"1/2018/OP",null,"04.12.2018",null,"04.12.2023",null,"Ksiązka obiektu"]
[6,"pomiary rezystancji izolacji instalacji elektrycznych",null,"1(W)/2018/IZ",null,"04.12.2018",null,"04.12.2023",null,"Ksiązka obiektu"]
[7,"z przeglądu technicznego i czynności konserwacyjnych przeciwpożarowego wyłącznika prądu (PWP)",null,"01/2020/PWP/1",null,"15.05.2020",null,"05.2021",null,"Ksiązka obiektu"]
[8,"rezystancji instalacji odgromowej",null,"01/2018/OO",null,"30.08.2018",null,"30.08.2022",null,"Ksiązka obiektu"]
[9,"okresowa kontrola przewodów kominowych",null,"875/19",null,"30.11.2019",null,"listopad 2020r.",null,"Ksiązka obiektu"]
[10,"Zdjęcia (ewentualnie)"]
[11,"Xero - Uprawnienia budowlane (w przypadku wykonywania systemem zleconym)"]
[12,0]
[13]
[14]
[15]
[]
["Zapoznałem się:"]
[]
[null,"ADMINISTRATOR",{"$nulls":4},"ZARZĄDCA"]
[null,"Potwierdzam zgodnośc danych ujetych w pkt. II."]
[]
[]
[]
[null,"Dowódca / Komendant WOG\n(podpis oraz pieczątka)",{"$nulls":4},"Szef RZI/SZI/WZI\n(podpis oraz pieczątka)"]
[]
[]
[]
[null,"Protokół wykonano w 2 egz."]
[null,"Egz. nr 1 - Zarządca"]
[null,"Egz. nr 2 - Administrator"]
[]
[null,"Objaśnienia:"]
[null,"* niepotrzebne skreślić"]

{"sheet":"Protokoł 1-roczny 2021","index":1,"n_rows":223,"n_cols":11,"rows_kept":223,"merged":[[1,1,1,9],[2,3,2,4],[3,3,3,9],[5,1,5,3],[5,4,5,10],[6,1,6,3],[6,4,6,10],[7,1,7,3],[7,4,7,5],[7,6,7,7],[7,8,7,10],[8,0,8,1],[8,2,8,10],[9,1,9,10],[10,1,10,10],[11,1,11,10],[12,1,12,10],[13,1,13,10],[14,3,14,4],[14,8,14,9],[15,0,26,1],[15,5,15,10],[16,5,16,10],[17,5,17,10],[18,5,18,10],[19,5,19,10],[20,5,20,10],[21,5,21,10],[22,5,22,10],[23,5,23,10],[24,5,24,10],[25,5,25,10],[26,5,26,10],[27,0,28,1],[27,2,28,10],[29,1,29,10],[30,0,30,1],[30,2,30,4],[30,5,30,7],[30,8,30,10],[31,0,31,1],[31,5,31,7],[31,8,31,10],[32,0,32,1],[32,5,32,7],[33,0,33,1],[33,2,33,3],[33,5,33,7],[33,8,33,9],[34,0,35,1],[34,2,35,3],[34,4,35,4],[34,5,34,7],[34,8,34,9],[35,5,35,7],[36,0,37,1],[36,3,36,4],[36,5,36,6],[37,3,37,10],[38,0,43,1],[38,6,38,9],[39,6,39,9],[42,2,42,10],[43,2,43,10],[44,1,44,10],[47,1,47,2],[47,6,47,7],[48,1,48,3],[48,4,48,10],[49,1,49,10],[50,1,50,10],[52,1,52,10],[53,1,53,10],[54,0,54,2],[54,3,54,5],[54,9,54,10],[55,0,55,2],[55,3,55,6],[55,9,55,10],[56,0,56,2],[56,3,56,6],[56,9,56,10],[57,0,57,2],[57,3,57,6],[57,9,57,10],[58,0,58,2],[58,3,58,6],[58,9,58,10],[59,0,59,2],[59,3,59,6],[59,9,59,10],[60,0,60,2],[60,3,60,6],[60,9,60,10],[61,0,61,2],[61,3,61,6],[61,9,61,10],[62,0,62,2],[62,3,62,6],[62,9,62,10],[63,0,63,2],[63,3,63,6],[63,9,63,10],[64,0,64,2],[64,3,64,6],[64,9,64,10],[65,1,65,10],[67,0,68,0],[67,1,68,2],[67,3,68,3],[67,4,68,5],[67,6,68,7],[67,10,68,10],[70,1,70,2],[70,3,70,5],[70,6,70,7],[71,1,71,2],[71,3,71,5],[71,6,71,7],[72,1,72,2],[72,3,72,5],[72,6,72,7],[74,1,74,2],[74,3,74,5],[74,6,74,7],[75,1,75,2],[75,3,75,5],[75,6,75,7],[76,3,76,5],[76,6,76,7],[77,1,77,2],[77,3,77,5],[77,6,77,7],[78,1,78,2],[78,3,78,5],[78,6,78,7],[79,1,79,2],[79,3,79,5],[79,6,79,7],[81,1,81,2],[81,3,81,5],[81,6,81,7],[82,1,82,2],[82,3,82,5],[82,6,82,7],[83,1,83,2],[83,3,83,5],[83,6,83,7],[84,1,84,2],[84,3,84,5],[84,6,84,7],[86,1,86,2],[86,3,86,5],[86,6,86,7],[87,1,87,2],[87,3,87,5],[87,6,87,7],[88,1,88,2],[88,3,88,5],[88,6,88,7],[89,1,89,2],[89,3,89,5],[89,6,89,7],[90,1,90,2],[90,3,90,5],[90,6,90,7],[91,1,91,2],[91,3,91,5],[91,6,91,7],[93,1,93,2],[93,3,93,5],[93,6,93,7],[94,1,94,2],[94,3,94,5],[94,6,94,7],[95,1,95,2],[95,3,95,5],[95,6,95,7],[96,1,96,2],[96,3,96,5],[96,6,96,7],[97,1,97,2],[97,3,97,5],[97,6,97,7],[98,1,98,2],[98,3,98,5],[98,6,98,7],[99,1,99,2],[99,3,99,5],[99,6,99,7],[101,1,101,2],[101,3,101,5],[101,6,101,7],[102,1,102,2],[102,3,102,5],[102,6,102,7],[103,1,103,2],[103,3,103,5],[103,6,103,7],[104,1,104,2],[104,3,104,5],[104,6,104,7],[105,1,105,2],[105,3,105,5],[105,6,105,7],[106,1,106,2],[106,3,106,5],[106,6,106,7],[107,1,107,2],[107,3,107,5],[107,6,107,7],[109,1,109,2],[109,3,109,5],[109,6,109,7],[110,1,110,2],[110,3,110,5],[110,6,110,7],[111,1,111,2],[111,3,111,5],[111,6,111,7],[113,1,113,2],[113,3,113,5],[113,6,113,7],[114,1,114,2],[114,3,114,5],[114,6,114,7],[115,1,115,2],[115,3,115,5],[115,6,115,7],[116,1,116,2],[116,3,116,5],[116,6,116,7],[117,1,117,2],[117,3,117,5],[117,6,117,7],[119,1,119,2],[119,3,119,5],[119,6,119,7],[120,1,120,2],[120,3,120,5],[120,6,120,7],[121,1,121,2],[121,3,121,5],[121,6,121,7],[122,1,122,2],[122,3,122,5],[122,6,122,7],[123,1,123,2],[123,3,123,5],[123,6,123,7],[124,1,124,2],[124,3,124,5],[124,6,124,7],[125,1,125,2],[125,3,125,5],[125,6,125,7],[126,1,126,2],[126,3,126,5],[126,6,126,7],[127,1,127,2],[127,3,127,5],[127,6,127,7],[129,1,129,2],[129,3,129,5],[129,6,129,7],[130,1,130,2],[130,3,130,5],[130,6,130,7],[131,1,131,2],[131,3,131,5],[131,6,131,7],[132,1,132,2],[132,3,132,5],[132,6,132,7],[134,1,134,2],[134,3,134,5],[134,6,134,7],[135,1,135,2],[135,3,135,5],[135,6,135,7],[136,1,136,2],[136,3,136,5],[136,6,136,7],[137,1,137,2],[137,3,137,5],[137,6,137,7],[138,1,138,2],[138,3,138,5],[138,6,138,7],[140,1,140,2],[140,3,140,5],[140,6,140,7],[141,1,141,10],[143,1,143,8],[143,9,143,10],[144,1,144,8],[144,9,144,10],[145,1,145,8],[145,9,145,10],[146,1,146,8],[146,9,146,10],[147,1,147,8],[147,9,147,10],[148,1,148,8],[148,9,148,10],[149,1,149,8],[149,9,149,10],[150,1,150,8],[150,9,150,10],[151,0,151,10],[152,0,152,10],[153,0,153,10],[154,0,154,10],[155,0,155,10],[156,0,156,10],[157,0,157,10],[158,0,158,10],[159,1,159,10],[160,1,160,8],[160,9,160,10],[161,0,161,8],[161,9,161,10],[162,0,162,8],[162,9,162,10],[163,0,163,8],[163,9,163,10],[164,0,164,8],[164,9,164,10],[165,0,165,8],[165,9,165,10],[166,0,166,8],[166,9,166,10],[167,0,167,8],[167,9,167,10],[168,0,168,8],[168,9,168,10],[169,0,169,8],[169,9,169,10],[170,0,170,8],[170,9,170,10],[171,1,171,10],[173,1,173,4],[174,1,174,4],[175,1,175,4],[175,6,175,9],[177,1,177,4],[178,1,178,4],[179,1,179,4],[179,6,179,9],[181,1,181,4],[182,1,182,4],[183,1,183,4],[183,6,183,9],[184,1,184,10],[185,0,185,10],[186,1,186,2],[186,3,186,4],[186,5,186,6],[186,7,186,8],[186,9,186,10],[187,1,187,2],[187,3,187,4],[187,5,187,6],[187,7,187,8],[187,9,187,10],[188,1,188,2],[188,3,188,4],[188,5,188,6],[188,7,188,8],[188,9,188,10],[189,1,189,2],[189,3,189,4],[189,5,189,6],[189,7,189,8],[189,9,189,10],[190,1,190,2],[190,3,190,4],[190,5,190,6],[190,7,190,8],[190,9,190,10],[191,1,191,2],[191,3,191,4],[191,5,191,6],[191,7,191,8],[191,9,191,10],[192,1,192,2],[192,3,192,4],[192,5,192,6],[192,7,192,8],[192,9,192,10],[193,1,193,2],[193,3,193,4],[193,5,193,6],[193,7,193,8],[193,9,193,10],[194,1,194,2],[194,3,194,4],[194,5,194,6],[194,7,194,8],[194,9,194,10],[195,1,195,2],[195,3,195,4],[195,5,195,6],[195,7,195,8],[195,9,195,10],[196,1,196,10],[197,1,197,10],[198,1,198,10],[199,1,199,10],[200,1,200,10],[201,1,201,10],[210,0,210,10],[217,1,217,4],[217,6,217,9],[218,1,218,4],[218,6,218,9],[221,1,221,4],[221,6,221,9],[222,1,222,4],[222,6,222,9]]}
[{"$nulls":5},"PROTOKÓŁ Nr: ",1,{"$f":"CONCATENATE(\"/\",D3,\"/\",E8,\"/\",YEAR(D15))","v":"///2021"}]
[null,"z okresowej kontroli rocznej stanu technicznego obiektu budowlanego"]
[null,"Nr:"]
[null,"Nazwa:"]
[]
[null,"ZARZĄDCA:",null,null,"RZI Lublin, 20-020 Lublin, ul. Lipowa 1A"]
[null,"ADMINISTRATOR ",null,null,"32 Wojskowy Oddział Gospodarczy w Zamościu"]
[null,"Nr kompleksu wojskowego:",{"$nulls":4},"Miejscowość:"]
["Podstawa ",null,"art. 62 ust. 1 pkt 1 ustawy z dnia 7 lipca 1994 roku - Prawo budowlane (Dz. U. z 2020 r. poz. 1333 z późn. zm.),"]
["I.","Zakres kontroli obejmuje sprawdzenie"]
[1,"Wykonania zaleceń z poprzednich kontroli,"]
[2,"Elementów budynku, budowli i instalacji narażonych na szkodliwe wpływy atmosferyczne i niszczące działania czynników występujących podczas użytkowania budynku, których uszkodzenia mogą powodować zagrożenie dla: bezpieczeństwa osób, środowiska oraz konstrukcji budynku"]
[3,"Instalacji i urządzeń służących ochronie środowiska,"]
[4,"Instalacji gazowych oraz przewodów kominowych (dymowych, spalinowych i wentylacyjnych);"]
[null,"Data kontroli:",null,"2021-05-15",{"$nulls":3},"Data następnej kontroli:",{"$f":"D15+365","v":"2022-05-15"}]
["Skład zespołu przeprowadza-jącego kontrolę",null,"Imię, nazwisko"]
[null,null,"nr uprawnień budowlanych"]
[null,null,"przynależność do OIIB"]
[null,null,"/br. budowlana/"]
[null,null,"Imię, nazwisko"]
[null,null,"nr uprawnień budowlanych"]
[null,null,"przynależność do OIIB"]
[null,null,"/br. sanitarna/"]
[null,null,"Imię, nazwisko"]
[null,null,"nr uprawnień budowlanych"]
[null,null,"przynależność do OIIB"]
[null,null,"/br. elektryczna/"]
["Przy udziale"]
[]
["II.","Informacje ogólne o obiekcie budowlanym"]
["Funkcja obiektu",null,{"$f":"IF(ISBLANK(D4),\"\",D4)","v":""},null,null,"Garnizon"]
["Pozwolenie na użytkowanie",null,null,"TAK",null,"Rok budowy"]
["Obiekt użytkowany zgodnie z przeznaczeniem",null,null,"TAK",null,"Obiekt objęty opieką konserwatorską",{"$nulls":3},"TAK"]
["Powierzchnia zabudowy",{"$nulls":3},"m2","Powierzchnia użytkowa",{"$nulls":4},"m2"]
["Kubatura",{"$nulls":3},"m3","Wysokość",{"$nulls":4},"m"]
[{"$nulls":5},"Ilość kondygn. nadziem. /podziem.",{"$nulls":3},"/"]
["Rodzaj konstrukcji",null,null,"Murowana"]
[null,null,"Inna opis:"]
["Wyposażenie",null,"þ","przewody - grawitacyjne:",null,null,"Spalinowe"]
[null,null,"þ","przewody -  ciąg wymuszony:",null,null,"Wentylacyjne; Dymowe"]
[null,null,"o","instalacja gazowa"]
[null,null,"o","instalacje i urządzenia służące ochronie środowiska"]
[]
[]
["III","Sprawdzenie wykonania zaleceń z poprzedniej kontroli"]
["Przed rozpoczęciem kontroli zapoznano się z:"]
[1,"Protokołami z poprzedniej kontroli:"]
["Nr",null,null,"data:",null,"Nr:",null,null,"data:"]
[null,"przeprowadzonej przez"]
[]
[]
[2,"Innymi dokumentami mającymi znaczenie dla oceny stanu technicznego:"]
[null,"Książka obiektu"]
[]
["Element, urządzenie, instalacja",null,null,"Zalecenia",{"$nulls":3},"Data","Stan realizacji zaleceń","Uwagi"]
{"$rows_empty":10}
["IV","Ustalenie oraz wnioski po sprawdzeniu stanu technicznego:"]
["W trakcie kontroli ustalono:"]
["-\n-\n-","Element, \nUrządzenie\nInstalacja",null,"-\n-\n-\n-","Materiał\nSposób wykonania\nSposób mocowania\nWyposażenie",null,"Opis: \n- stanu technicznego\n- zużycia\n- uszkodzenia",null,"Stan ","Zużycie\n[%]","UWAGI"]
[{"$nulls":8},"Dobry\nZadowalający\nNiezadowalający\nZły\nZupełnie zły","0% - 20%\n21% - 35%\n36% - 50%\n51% - 70%\n> 70%"]
["Zewnętrzne warstwy przegród zewnętrznych "]
[1,"Tynki",{"$nulls":6},{"$f":"VLOOKUP(J71,ProcZUzycia[],2,TRUE)","v":"Nie występuje"}]
[2,"Okładziny",{"$nulls":6},{"$f":"VLOOKUP(J72,ProcZUzycia[],2,TRUE)","v":"Nie występuje"}]
[3,{"$nulls":7},{"$f":"VLOOKUP(J73,ProcZUzycia[],2,TRUE)","v":"Nie występuje"}]
["Elelementy ścian zewnętrznych"]
[1,"gzymsy",{"$nulls":6},{"$f":"VLOOKUP(J75,ProcZUzycia[],2,TRUE)","v":"Nie występuje"}]
[2,"attyki",{"$nulls":6},{"$f":"VLOOKUP(J76,ProcZUzycia[],2,TRUE)","v":"Nie występuje"}]
[3,"filary",{"$nulls":6},{"$f":"VLOOKUP(J77,ProcZUzycia[],2,TRUE)","v":"Nie występuje"}]
[4,"balkony, loggie",{"$nulls":6},{"$f":"VLOOKUP(J78,ProcZUzycia[],2,TRUE)","v":"Nie występuje"}]
[5,"balustrady",{"$nulls":6},{"$f":"VLOOKUP(J79,ProcZUzycia[],2,TRUE)","v":"Nie występuje"}]
[6,"drabiny",{"$nulls":6},{"$f":"VLOOKUP(J80,ProcZUzycia[],2,TRUE)","v":"Nie występuje"}]
["Urządzenia i instalacje zamocowane do ścian i dachu"]
[1,"szyldy, reklamy",{"$nulls":6},{"$f":"VLOOKUP(J82,ProcZUzycia[],2,TRUE)","v":"Nie występuje"}]
[2,"klimatyzatory",{"$nulls":6},{"$f":"VLOOKUP(J83,ProcZUzycia[],2,TRUE)","v":"Nie występuje"}]
[3,"anteny",{"$nulls":6},{"$f":"VLOOKUP(J84,ProcZUzycia[],2,TRUE)","v":"Nie występuje"}]
[4,{"$nulls":7},{"$f":"VLOOKUP(J85,ProcZUzycia[],2,TRUE)","v":"Nie występuje"}]
["Pokrycia dachowe i elementy odwodnienia"]
[1,"pokrycie dachu",{"$nulls":6},{"$f":"VLOOKUP(J87,ProcZUzycia[],2,TRUE)","v":"Nie występuje"}]
[2,"kominy, ławy komina",{"$nulls":6},{"$f":"VLOOKUP(J88,ProcZUzycia[],2,TRUE)","v":"Nie występuje"}]
[3,"obróbki blacharskie",{"$nulls":6},{"$f":"VLOOKUP(J89,ProcZUzycia[],2,TRUE)","v":"Nie występuje"}]
[4,"rynny",{"$nulls":6},{"$f":"VLOOKUP(J90,ProcZUzycia[],2,TRUE)","v":"Nie występuje"}]
[5,"rury spustowe",{"$nulls":6},{"$f":"VLOOKUP(J91,ProcZUzycia[],2,TRUE)","v":"Nie występuje"}]
[6,{"$nulls":7},{"$f":"VLOOKUP(J92,ProcZUzycia[],2,TRUE)","v":"Nie występuje"}]
["Instalacje i urządzenia służące ochronie środowiska"]
[1,"kanalizacja sanitarna",{"$nulls":6},{"$f":"VLOOKUP(J94,ProcZUzycia[],2,TRUE)","v":"Nie występuje"}]
[2,"kanalizacja deszczowa",{"$nulls":6},{"$f":"VLOOKUP(J95,ProcZUzycia[],2,TRUE)","v":"Nie występuje"}]
[3,"zbiorniki bezodpływowe",{"$nulls":6},{"$f":"VLOOKUP(J96,ProcZUzycia[],2,TRUE)","v":"Nie występuje"}]
[4,"urządzenia do oczyszczania ścieków",{"$nulls":6},{"$f":"VLOOKUP(J97,ProcZUzycia[],2,TRUE)","v":"Nie występuje"}]
[5,"urządzenia filtrujące",{"$nulls":6},{"$f":"VLOOKUP(J98,ProcZUzycia[],2,TRUE)","v":"Nie występuje"}]
[6,"urządzenia wygłuszające",{"$nulls":6},{"$f":"VLOOKUP(J99,ProcZUzycia[],2,TRUE)","v":"Nie występuje"}]
[7,"itd.",{"$nulls":6},{"$f":"VLOOKUP(J100,ProcZUzycia[],2,TRUE)","v":"Nie występuje"}]
["Instalacja gazowa"]
[1,"przewody",{"$nulls":6},{"$f":"VLOOKUP(J102,ProcZUzycia[],2,TRUE)","v":"Nie występuje"}]
[2,"instalacje sygnalizujące",{"$nulls":6},{"$f":"VLOOKUP(J103,ProcZUzycia[],2,TRUE)","v":"Nie występuje"}]
[3,"urządzenia odcinające",{"$nulls":6},{"$f":"VLOOKUP(J104,ProcZUzycia[],2,TRUE)","v":"Nie występuje"}]
[4,"zawór główny",{"$nulls":6},{"$f":"VLOOKUP(J105,ProcZUzycia[],2,TRUE)","v":"Nie występuje"}]
[5,"urządzenia redukcyjne",{"$nulls":6},{"$f":"VLOOKUP(J106,ProcZUzycia[],2,TRUE)","v":"Nie występuje"}]
[6,"gazomierz",{"$nulls":6},{"$f":"VLOOKUP(J107,ProcZUzycia[],2,TRUE)","v":"Nie występuje"}]
[7,"zabezpieczenie antykorozyjne i kolorystyka instalacji",{"$nulls":6},{"$f":"VLOOKUP(J108,ProcZUzycia[],2,TRUE)","v":"Nie występuje"}]
["Instalacja piorunochronna"]
[1,"Zwody poziome",{"$nulls":6},{"$f":"VLOOKUP(J110,ProcZUzycia[],2,TRUE)","v":"Nie występuje"}]
[2,"Zwody pionowe.\nPrzewody odprowadz.",{"$nulls":6},{"$f":"VLOOKUP(J111,ProcZUzycia[],2,TRUE)","v":"Nie występuje"}]
[3,"Uziemienie",{"$nulls":6},{"$f":"VLOOKUP(J112,ProcZUzycia[],2,TRUE)","v":"Nie występuje"}]
["Instalacja elektryczna"]
[1,{"$nulls":7},{"$f":"VLOOKUP(J114,ProcZUzycia[],2,TRUE)","v":"Nie występuje"}]
[2,{"$nulls":7},{"$f":"VLOOKUP(J115,ProcZUzycia[],2,TRUE)","v":"Nie występuje"}]
[3,{"$nulls":7},{"$f":"VLOOKUP(J116,ProcZUzycia[],2,TRUE)","v":"Nie występuje"}]
[4,{"$nulls":7},{"$f":"VLOOKUP(J117,ProcZUzycia[],2,TRUE)","v":"Nie występuje"}]
[5,{"$nulls":7},{"$f":"VLOOKUP(J118,ProcZUzycia[],2,TRUE)","v":"Nie występuje"}]
["Przewody kominowe (dymowe, spalinowe i wentylacyjne)"]
[1,"dymowe",{"$nulls":6},{"$f":"VLOOKUP(J120,ProcZUzycia[],2,TRUE)","v":"Nie występuje"}]
[2,"spalinowe, \ngrawitacyjne",{"$nulls":6},{"$f":"VLOOKUP(J121,ProcZUzycia[],2,TRUE)","v":"Nie występuje"}]
[3,"wentylacyjne, \ngrawitacyjne",{"$nulls":6},{"$f":"VLOOKUP(J122,ProcZUzycia[],2,TRUE)","v":"Nie występuje"}]
[4,"spalinowe, \nmechaniczne",{"$nulls":6},{"$f":"VLOOKUP(J123,ProcZUzycia[],2,TRUE)","v":"Nie występuje"}]
[5,"wentylacyjne, \nmechaniczne",{"$nulls":6},{"$f":"VLOOKUP(J124,ProcZUzycia[],2,TRUE)","v":"Nie występuje"}]
[6,"kominy wolnostojące",{"$nulls":6},{"$f":"VLOOKUP(J125,ProcZUzycia[],2,TRUE)","v":"Nie występuje"}]
[7,"kominy przemysłwoe",{"$nulls":6},{"$f":"VLOOKUP(J126,ProcZUzycia[],2,TRUE)","v":"Nie występuje"}]
[8,"urządzenia wentylacyjne",{"$nulls":6},{"$f":"VLOOKUP(J127,ProcZUzycia[],2,TRUE)","v":"Nie występuje"}]
[9,{"$nulls":7},{"$f":"VLOOKUP(J128,ProcZUzycia[],2,TRUE)","v":"Nie występuje"}]
["Przejścia przyłaczy instalacyjnych przez ściany"]
[1,"c.o., c.w.u.",{"$nulls":6},{"$f":"VLOOKUP(J130,ProcZUzycia[],2,TRUE)","v":"Nie występuje"}]
[2,"Wod-Kan",{"$nulls":6},{"$f":"VLOOKUP(J131,ProcZUzycia[],2,TRUE)","v":"Nie występuje"}]
[3,"Gazowa",{"$nulls":6},{"$f":"VLOOKUP(J132,ProcZUzycia[],2,TRUE)","v":"Nie występuje"}]
[4,"Elektryczna",{"$nulls":6},{"$f":"VLOOKUP(J133,ProcZUzycia[],2,TRUE)","v":"Nie występuje"}]
["Inne elementy, urządzenia, instalacje, nawierzchnie utwardzone"]
[1,{"$nulls":7},{"$f":"VLOOKUP(J135,ProcZUzycia[],2,TRUE)","v":"Nie występuje"}]
[2,{"$nulls":7},{"$f":"VLOOKUP(J136,ProcZUzycia[],2,TRUE)","v":"Nie występuje"}]
[3,{"$nulls":7},{"$f":"VLOOKUP(J137,ProcZUzycia[],2,TRUE)","v":"Nie występuje"}]
[4,{"$nulls":7},{"$f":"VLOOKUP(J138,ProcZUzycia[],2,TRUE)","v":"Nie występuje"}]
[5,{"$nulls":7},{"$f":"VLOOKUP(J139,ProcZUzycia[],2,TRUE)","v":"Nie występuje"}]
["Estetyka obiektu i jego otoczenia"]
[1,{"$nulls":7},{"$f":"VLOOKUP(J141,ProcZUzycia[],2,TRUE)","v":"Nie występuje"}]
["V","WNIOSKI KOŃCOWE"]
["Sprawdzenie spełnienia przez obiekt, podsatwowych wymogów pod względem"]
["a)","użytkowania zgodnie z przeznaczeniem ",{"$nulls":7},"Spełnia"]
["b)","bezpieczeństwa użytkowania",{"$nulls":7},"Spełnia"]
["c)","warunków higieniczno-sanitarnych i zdrowotnych ",{"$nulls":7},"Spełnia"]
["d)","ochrony środowiska",{"$nulls":7},"Spełnia"]
["e)","zabezpieczenia przed uszkodzeniami biologicznymi ",{"$nulls":7},"Spełnia"]
["f)","użytkowania w sposób nie zagrażający życiu lub zdrowiu ludzi i bezpieczeństwa mienia ",{"$nulls":7},"Nie Zagraża"]
["g)","stanu technicznego",{"$nulls":7},"Spełnia"]
["h)","powodowania swym wyglądem oszpecenie otoczenia",{"$nulls":7},"Nie Szpeci"]
["Stan techniczny budynku zapewnia dalsze, bezpieczne jego użytkowanie"]
["Wobec stwierdzenia uszkodzeń lub braków, które mogą spowodować: zagrożenie życia lub zdrowia ludzi, bezpieczeństwa mienia lub środowiska, a w szczególności katastrofę budowlaną, pożar, wybuch, porażenie prądem elektrycznym albo zatrucie gazem – osoba dokonująca kontroli, na podstawie art. 70 ust. 2 ustawy Prawo budowlane, niezwłocznie prześle kopię niniejszego protokołu do właściwego terytorialnie Wojewódzkiego Inspektora Nadzoru Budowlanego* "]
["W celu usunięcia zagrożenia dla ludzi i mienia należy niezwłocznie wykonać:"]
[]
[]
[]
[]
[]
["VI","Zalecenia w zakresie"]
[null,"Opis zaleceń ",{"$nulls":7},"Termin realizacji\n(rok-miesiac-dzień)"]
{"$rows_empty":10}
["VII","Oświadczenia osób przeprowadzających kontrolę"]
["w zakresie branży obólnobudowlanej"]
[null,{"$f":"IF(F16=0,\"-\",F16)","v":"-"}]
[null,{"$f":"IF(F17=0,\"-\",F17)","v":"-"}]
[null,"imię i nazwisko oraz nr uprawnień",{"$nulls":4},"(podpis oraz pieczątka)"]
["w zakresie branży sanitarnej"]
[null,{"$f":"IF(F20=0,\"-\",F20)","v":"-"}]
[null,{"$f":"IF(F21=0,\"-\",F21)","v":"-"}]
[null,"imię i nazwisko oraz nr uprawnień",{"$nulls":4},"(podpis oraz pieczątka)"]
["w zakresie branży elektrycznej"]
[null,{"$f":"IF(F24=0,\"-\",F24)","v":"-"}]
[null,{"$f":"IF(F25=0,\"-\",F25)","v":"-"}]
[null,"imię i nazwisko oraz nr uprawnień",{"$nulls":4},"(podpis oraz pieczątka)"]
["VIII","Załaczniki do protokołu"]
["np. protokoły pomiarów, kserokopie uprawnień do wykonywania kontroli, dokumentacja fotograficzna wykonana w toku kontroli,  (elementów zewnętrznych, wewnętrznych i konstrukcyjnych)"]
["Lp","Rodzaj pomiaru",null,"Nr protokołu",null,"Data pomiaru",null,"Data ważności",null,"Uwagi"]
[1]
[2]
[3]
[4]
[5]
[6]
[7]
[8]
[9]
[10]
[11]
[12]
[13]
[14]
[15]
{"$rows_empty":8}
["Zapoznałem się:"]
[]
[]
[]
[]
[]
[]
[null,"ADMINISTRATOR",{"$nulls":4},"ZARZĄDCA"]
[]
[]
[]
[]
[null,"Dowódca / Komendant WOG\n(podpis oraz pieczątka)",{"$nulls":4},"Szef RZI/SZI/WZI\n(podpis oraz pieczątka)"]

{"sheet":"DANE","index":2,"n_rows":83,"n_cols":15,"rows_kept":83,"hidden":true}
[]
["IdKlasyfikacja","GrupaObiektowa","RodzajObiektu","Razem",null,"IdRSZ","RSZ",null,"Procent","StanTechniczny",null,"Dobry","< 20%",null,{"$f":"VLOOKUP(K16,ProcZUzycia[],2,TRUE)","v":"Nie występuje"}]
[1,null,null,{"$f":"DANE!$B3&\" - \"&DANE!$C3","v":" - "},null,1,"-",null,{"v":0,"d":"0.00%"},"Nie występuje",null,"Zadowalający","< 35%"]
[2,"GOSPODARCZE","CHLEWNIE",{"$f":"DANE!$B4&\" - \"&DANE!$C4","v":"GOSPODARCZE - CHLEWNIE"},null,2,"IWSZ",null,{"v":1E-4,"d":"0.01%"},"Dobry",null,"Niezadowalający","< 50%"]
[3,"GOSPODARCZE","CIEPLARNIE",{"$f":"DANE!$B5&\" - \"&DANE!$C5","v":"GOSPODARCZE - CIEPLARNIE"},null,3,"WL",null,{"v":0.21,"d":"21.00%"},"Zadowalający",null,"zły","< 70%"]
[4,"GOSPODARCZE","INNE GOSPODARCZE",{"$f":"DANE!$B6&\" - \"&DANE!$C6","v":"GOSPODARCZE - INNE GOSPODARCZE"},null,4,"SP",null,{"v":0.36,"d":"36.00%"},"Niezadowalający",null,"zupełnie zły / awaryjny","> 70%"]
[5,"GOSPODARCZE","JADALNIE",{"$f":"DANE!$B7&\" - \"&DANE!$C7","v":"GOSPODARCZE - JADALNIE"},null,5,"DGW",null,{"v":0.51,"d":"51.00%"},"Zły"]
[6,"GOSPODARCZE","KASYNOWE",{"$f":"DANE!$B8&\" - \"&DANE!$C8","v":"GOSPODARCZE - KASYNOWE"},null,6,"MW",null,{"v":0.71,"d":"71.00%"},"Zupełnie zły"]
[7,"GOSPODARCZE","KUCHNIE",{"$f":"DANE!$B9&\" - \"&DANE!$C9","v":"GOSPODARCZE - KUCHNIE"},null,7,"INNE"]
[8,"GOSPODARCZE","KUCHNIE I JADALNIE (STOŁÓWKI)",{"$f":"DANE!$B10&\" - \"&DANE!$C10","v":"GOSPODARCZE - KUCHNIE I JADALNIE (STOŁÓWKI)"}]
[9,"GOSPODARCZE","ŁAŹNIE",{"$f":"DANE!$B11&\" - \"&DANE!$C11","v":"GOSPODARCZE - ŁAŹNIE"}]
[10,"GOSPODARCZE","PIEKARNIE",{"$f":"DANE!$B12&\" - \"&DANE!$C12","v":"GOSPODARCZE - PIEKARNIE"}]
[11,"GOSPODARCZE","PRALNIE",{"$f":"DANE!$B13&\" - \"&DANE!$C13","v":"GOSPODARCZE - PRALNIE"}]
[12,"GOSPODARCZE","STAJNIE",{"$f":"DANE!$B14&\" - \"&DANE!$C14","v":"GOSPODARCZE - STAJNIE"}]
[13,"KOSZAROWO-ADMINISTRACYJNE","ARESZTY",{"$f":"DANE!$B15&\" - \"&DANE!$C15","v":"KOSZAROWO-ADMINISTRACYJNE - ARESZTY"}]
[14,"KOSZAROWO-ADMINISTRACYJNE","BIUROWO-SZTABOWE",{"$f":"DANE!$B16&\" - \"&DANE!$C16","v":"KOSZAROWO-ADMINISTRACYJNE - BIUROWO-SZTABOWE"},null,"IdKonstr","RodzKonstr",null,"Stopień wykonania zaleceń"]
[15,"KOSZAROWO-ADMINISTRACYJNE","INNE OGÓLNOWOJSKOWE",{"$f":"DANE!$B17&\" - \"&DANE!$C17","v":"KOSZAROWO-ADMINISTRACYJNE - INNE OGÓLNOWOJSKOWE"},null,1,"Żelbetowa",null,"Wykonano"]
[16,"KOSZAROWO-ADMINISTRACYJNE","KOSZAROWE",{"$f":"DANE!$B18&\" - \"&DANE!$C18","v":"KOSZAROWO-ADMINISTRACYJNE - KOSZAROWE"},null,2,"Murowana",null,"W trakcie realizacji"]
[17,"KOSZAROWO-ADMINISTRACYJNE","KOSZAROWE DLA PODCHORĄŻYCH",{"$f":"DANE!$B19&\" - \"&DANE!$C19","v":"KOSZAROWO-ADMINISTRACYJNE - KOSZAROWE DLA PODCHORĄŻYCH"},null,3,"Drewniana",null,"Nie Wykonano"]
[18,"KOSZAROWO-ADMINISTRACYJNE","KOSZAROWO-BIUROWE",{"$f":"DANE!$B20&\" - \"&DANE!$C20","v":"KOSZAROWO-ADMINISTRACYJNE - KOSZAROWO-BIUROWE"},null,4,"Stalowa",null,"Ujęto w RPKiN"]
[19,"KOSZAROWO-ADMINISTRACYJNE","SZKOLENIOWE",{"$f":"DANE!$B21&\" - \"&DANE!$C21","v":"KOSZAROWO-ADMINISTRACYJNE - SZKOLENIOWE"},null,5,"Inna",null,"Ujęto w RPRN"]
[20,"KOSZAROWO-ADMINISTRACYJNE","WARTOWNIE",{"$f":"DANE!$B22&\" - \"&DANE!$C22","v":"KOSZAROWO-ADMINISTRACYJNE - WARTOWNIE"},{"$nulls":4},"Zgło. do Planu Inwestycji"]
[21,"KULTURY I SZTUKI","INNE KULTURALNO-OŚWIATOWE",{"$f":"DANE!$B23&\" - \"&DANE!$C23","v":"KULTURY I SZTUKI - INNE KULTURALNO-OŚWIATOWE"},{"$nulls":4},"Ujeto w Planie Inwestycji"]
[22,"KULTURY I SZTUKI","KINA",{"$f":"DANE!$B24&\" - \"&DANE!$C24","v":"KULTURY I SZTUKI - KINA"}]
[23,"KULTURY I SZTUKI","KINO-KLUBOWE",{"$f":"DANE!$B25&\" - \"&DANE!$C25","v":"KULTURY I SZTUKI - KINO-KLUBOWE"}]
[24,"KULTURY I SZTUKI","KLUBOWE",{"$f":"DANE!$B26&\" - \"&DANE!$C26","v":"KULTURY I SZTUKI - KLUBOWE"}]
[25,"KULTURY I SZTUKI","KOŚCIOŁY",{"$f":"DANE!$B27&\" - \"&DANE!$C27","v":"KULTURY I SZTUKI - KOŚCIOŁY"}]
[26,"KULTURY I SZTUKI","KULTU RELIGIJNEGO I PLEBANIE",{"$f":"DANE!$B28&\" - \"&DANE!$C28","v":"KULTURY I SZTUKI - KULTU RELIGIJNEGO I PLEBANIE"}]
[27,"KULTURY I SZTUKI","TEATRALNE",{"$f":"DANE!$B29&\" - \"&DANE!$C29","v":"KULTURY I SZTUKI - TEATRALNE"}]
[28,"LOTNISKOWE","DOMKI STARTOWE",{"$f":"DANE!$B30&\" - \"&DANE!$C30","v":"LOTNISKOWE - DOMKI STARTOWE"}]
[29,"LOTNISKOWE","HANGARY",{"$f":"DANE!$B31&\" - \"&DANE!$C31","v":"LOTNISKOWE - HANGARY"}]
[30,"LOTNISKOWE","INNE OBIEKTY LOTNISKOWE",{"$f":"DANE!$B32&\" - \"&DANE!$C32","v":"LOTNISKOWE - INNE OBIEKTY LOTNISKOWE"},null,null,"Przewody Dymowe"]
[31,"LOTNISKOWE","PORTY LOTNICZE",{"$f":"DANE!$B33&\" - \"&DANE!$C33","v":"LOTNISKOWE - PORTY LOTNICZE"},null,null,"Wentylacyjne",null,"Rodzaj Konstrukcji"]
[32,"LOTNISKOWE","SPADOCHRONIARNIE",{"$f":"DANE!$B34&\" - \"&DANE!$C34","v":"LOTNISKOWE - SPADOCHRONIARNIE"},null,null,"Dymowe",null,"Żelbetowa"]
[33,"MAGAZYNOWE","INNE MAGAZYNY OGÓLNEGO",{"$f":"DANE!$B35&\" - \"&DANE!$C35","v":"MAGAZYNOWE - INNE MAGAZYNY OGÓLNEGO"},null,null,"Spalinowe",null,"Murowana"]
[34,"MAGAZYNOWE","MAGAZYNY AMUNICJI",{"$f":"DANE!$B36&\" - \"&DANE!$C36","v":"MAGAZYNOWE - MAGAZYNY AMUNICJI"},null,null,{"$f":"G33&\"; \"&G34","v":"Wentylacyjne; Dymowe"},null,"Drewniana"]
[35,"MAGAZYNOWE","MAGAZYNY BRONI",{"$f":"DANE!$B37&\" - \"&DANE!$C37","v":"MAGAZYNOWE - MAGAZYNY BRONI"},null,null,{"$f":"G33&\"; \"&G35","v":"Wentylacyjne; Spalinowe"},null,"Stalowa"]
[36,"MAGAZYNOWE","MAGAZYNY CZĘŚCI ZAMIENNYCH",{"$f":"DANE!$B38&\" - \"&DANE!$C38","v":"MAGAZYNOWE - MAGAZYNY CZĘŚCI ZAMIENNYCH"},null,null,{"$f":"G34&\"; \"&G35","v":"Dymowe; Spalinowe"},null,"Inna"]
[37,"MAGAZYNOWE","MAGAZYNY MATERIAŁÓW WYBUCHOWYCH",{"$f":"DANE!$B39&\" - \"&DANE!$C39","v":"MAGAZYNOWE - MAGAZYNY MATERIAŁÓW WYBUCHOWYCH"},null,null,{"$f":"G33&\"; \"&G34&\"; \"&G35","v":"Wentylacyjne; Dymowe; Spalinowe"}]
[38,"MAGAZYNOWE","MAGAZYNY MPS",{"$f":"DANE!$B40&\" - \"&DANE!$C40","v":"MAGAZYNOWE - MAGAZYNY MPS"}]
[39,"MAGAZYNOWE","MAGAZYNY MUNDUROWE",{"$f":"DANE!$B41&\" - \"&DANE!$C41","v":"MAGAZYNOWE - MAGAZYNY MUNDUROWE"}]
[40,"MAGAZYNOWE","MAGAZYNY SPRZĘTU KWATERUNKOWEGO",{"$f":"DANE!$B42&\" - \"&DANE!$C42","v":"MAGAZYNOWE - MAGAZYNY SPRZĘTU KWATERUNKOWEGO"}]
[41,"MAGAZYNOWE","MAGAZYNY ŚRODKÓW MATERIAŁOWO - TECHNICZNYCH",{"$f":"DANE!$B43&\" - \"&DANE!$C43","v":"MAGAZYNOWE - MAGAZYNY ŚRODKÓW MATERIAŁOWO - TECHNICZNYCH"}]
[42,"MAGAZYNOWE","MAGAZYNY TECHNICZNE LOTNISK",{"$f":"DANE!$B44&\" - \"&DANE!$C44","v":"MAGAZYNOWE - MAGAZYNY TECHNICZNE LOTNISK"}]
[43,"MAGAZYNOWE","MAGAZYNY ŻYWIENIOWE",{"$f":"DANE!$B45&\" - \"&DANE!$C45","v":"MAGAZYNOWE - MAGAZYNY ŻYWIENIOWE"}]
[44,"MIESZKALNE","HOTELE I INTERNATY",{"$f":"DANE!$B46&\" - \"&DANE!$C46","v":"MIESZKALNE - HOTELE I INTERNATY"},{"$nulls":4},"Zaznaczanie"]
[45,"MIESZKALNE","INTERNATY DLA KADRY",{"$f":"DANE!$B47&\" - \"&DANE!$C47","v":"MIESZKALNE - INTERNATY DLA KADRY"},{"$nulls":4},"þ"]
[46,"MIESZKALNE","MIESZKANIOWE",{"$f":"DANE!$B48&\" - \"&DANE!$C48","v":"MIESZKALNE - MIESZKANIOWE"},{"$nulls":4},"o"]
[47,"OCHRONY ZDROWIA, SPORTU I WYPOCZYNKU","BASENY KRYTE",{"$f":"DANE!$B49&\" - \"&DANE!$C49","v":"OCHRONY ZDROWIA, SPORTU I WYPOCZYNKU - BASENY KRYTE"}]
[48,"OCHRONY ZDROWIA, SPORTU I WYPOCZYNKU","CEMPINGOWE",{"$f":"DANE!$B50&\" - \"&DANE!$C50","v":"OCHRONY ZDROWIA, SPORTU I WYPOCZYNKU - CEMPINGOWE"}]
[49,"OCHRONY ZDROWIA, SPORTU I WYPOCZYNKU","HALE SPORTOWE",{"$f":"DANE!$B51&\" - \"&DANE!$C51","v":"OCHRONY ZDROWIA, SPORTU I WYPOCZYNKU - HALE SPORTOWE"}]
[50,"OCHRONY ZDROWIA, SPORTU I WYPOCZYNKU","INNE SOCJALNO-WYPOCZYNKOWE",{"$f":"DANE!$B52&\" - \"&DANE!$C52","v":"OCHRONY ZDROWIA, SPORTU I WYPOCZYNKU - INNE SOCJALNO-WYPOCZYNKOWE"}]
[51,"OCHRONY ZDROWIA, SPORTU I WYPOCZYNKU","IZBY CHORYCH",{"$f":"DANE!$B53&\" - \"&DANE!$C53","v":"OCHRONY ZDROWIA, SPORTU I WYPOCZYNKU - IZBY CHORYCH"}]
[52,"OCHRONY ZDROWIA, SPORTU I WYPOCZYNKU","POLIKLINIKI (PRZYCHODNIE)",{"$f":"DANE!$B54&\" - \"&DANE!$C54","v":"OCHRONY ZDROWIA, SPORTU I WYPOCZYNKU - POLIKLINIKI (PRZYCHODNIE)"},null,null,"Wentylacyjne"]
[53,"OCHRONY ZDROWIA, SPORTU I WYPOCZYNKU","PRZEDSZKOLA",{"$f":"DANE!$B55&\" - \"&DANE!$C55","v":"OCHRONY ZDROWIA, SPORTU I WYPOCZYNKU - PRZEDSZKOLA"},null,null,"Dymowe"]
[54,"OCHRONY ZDROWIA, SPORTU I WYPOCZYNKU","SANATORYJNE",{"$f":"DANE!$B56&\" - \"&DANE!$C56","v":"OCHRONY ZDROWIA, SPORTU I WYPOCZYNKU - SANATORYJNE"},null,null,"Spalinowe"]
[55,"OCHRONY ZDROWIA, SPORTU I WYPOCZYNKU","SZPITALE",{"$f":"DANE!$B57&\" - \"&DANE!$C57","v":"OCHRONY ZDROWIA, SPORTU I WYPOCZYNKU - SZPITALE"},null,null,{"$f":"G54&\" - \"&G55","v":"Wentylacyjne - Dymowe"}]
[56,"OCHRONY ZDROWIA, SPORTU I WYPOCZYNKU","WOJSKOWE DOMY WYPOCZYNKOWE",{"$f":"DANE!$B58&\" - \"&DANE!$C58","v":"OCHRONY ZDROWIA, SPORTU I WYPOCZYNKU - WOJSKOWE DOMY WYPOCZYNKOWE"},null,null,{"$f":"G54&\" - \"&G56","v":"Wentylacyjne - Spalinowe"}]
[57,"OCHRONY ZDROWIA, SPORTU I WYPOCZYNKU","ŻŁOBKI",{"$f":"DANE!$B59&\" - \"&DANE!$C59","v":"OCHRONY ZDROWIA, SPORTU I WYPOCZYNKU - ŻŁOBKI"},null,null,{"$f":"G55&\" - \"&G56","v":"Dymowe - Spalinowe"}]
[58,"POZOSTAŁE","INNE OBIEKTY KUBATUROWE",{"$f":"DANE!$B60&\" - \"&DANE!$C60","v":"POZOSTAŁE - INNE OBIEKTY KUBATUROWE"},null,null,{"$f":"G54&\" - \"&G55&\" -\"&G56","v":"Wentylacyjne - Dymowe -Spalinowe"}]
[59,"POZOSTAŁE","WIELOFUNKCYJNE",{"$f":"DANE!$B61&\" - \"&DANE!$C61","v":"POZOSTAŁE - WIELOFUNKCYJNE"}]
[60,"TECHNICZNO-EKSPLOATACYJNE","HYDROFORNIE",{"$f":"DANE!$B62&\" - \"&DANE!$C62","v":"TECHNICZNO-EKSPLOATACYJNE - HYDROFORNIE"}]
[61,"TECHNICZNO-EKSPLOATACYJNE","HYDROFORNIE I STACJE UZDATNIANIA WODY",{"$f":"DANE!$B63&\" - \"&DANE!$C63","v":"TECHNICZNO-EKSPLOATACYJNE - HYDROFORNIE I STACJE UZDATNIANIA WODY"}]
[62,"TECHNICZNO-EKSPLOATACYJNE","INNE TECHNICZNO-EKSPLOATACYJNE",{"$f":"DANE!$B64&\" - \"&DANE!$C64","v":"TECHNICZNO-EKSPLOATACYJNE - INNE TECHNICZNO-EKSPLOATACYJNE"}]
[63,"TECHNICZNO-EKSPLOATACYJNE","KOTŁOWNIE",{"$f":"DANE!$B65&\" - \"&DANE!$C65","v":"TECHNICZNO-EKSPLOATACYJNE - KOTŁOWNIE"}]
[64,"TECHNICZNO-EKSPLOATACYJNE","OCZYSZCZALNIE ŚCIEKÓW",{"$f":"DANE!$B66&\" - \"&DANE!$C66","v":"TECHNICZNO-EKSPLOATACYJNE - OCZYSZCZALNIE ŚCIEKÓW"}]
[65,"TECHNICZNO-EKSPLOATACYJNE","PRZEPOMPOWNIE MPS",{"$f":"DANE!$B67&\" - \"&DANE!$C67","v":"TECHNICZNO-EKSPLOATACYJNE - PRZEPOMPOWNIE MPS"}]
[66,"TECHNICZNO-EKSPLOATACYJNE","PRZEPOMPOWNIE ŚCIEKÓW",{"$f":"DANE!$B68&\" - \"&DANE!$C68","v":"TECHNICZNO-EKSPLOATACYJNE - PRZEPOMPOWNIE ŚCIEKÓW"}]
[67,"TECHNICZNO-EKSPLOATACYJNE","PRZEPOMPOWNIE WODY",{"$f":"DANE!$B69&\" - \"&DANE!$C69","v":"TECHNICZNO-EKSPLOATACYJNE - PRZEPOMPOWNIE WODY"}]
[68,"TECHNICZNO-EKSPLOATACYJNE","STACJE UZDATNIANIA WODY",{"$f":"DANE!$B70&\" - \"&DANE!$C70","v":"TECHNICZNO-EKSPLOATACYJNE - STACJE UZDATNIANIA WODY"}]
[69,"TECHNICZNO-EKSPLOATACYJNE","TRAFOSTACJE Z ROZDZIELNIAMI",{"$f":"DANE!$B71&\" - \"&DANE!$C71","v":"TECHNICZNO-EKSPLOATACYJNE - TRAFOSTACJE Z ROZDZIELNIAMI"}]
[70,"TECHNICZNO-EKSPLOATACYJNE","WIEŻE CIŚNIEŃ",{"$f":"DANE!$B72&\" - \"&DANE!$C72","v":"TECHNICZNO-EKSPLOATACYJNE - WIEŻE CIŚNIEŃ"},null,null,"StanTechniczny"]
[71,"TECHNICZNO-USŁUGOWE","DZIAŁOWNIE",{"$f":"DANE!$B73&\" - \"&DANE!$C73","v":"TECHNICZNO-USŁUGOWE - DZIAŁOWNIE"},null,null,"Stan techniczny budynku zapewnia dalsze, bezpieczne jego użytkowanie"]
[72,"TECHNICZNO-USŁUGOWE","GARAŻE",{"$f":"DANE!$B74&\" - \"&DANE!$C74","v":"TECHNICZNO-USŁUGOWE - GARAŻE"},null,null,"Stan techniczny budynku nie zapewnia dalszego, bezpiecznego jego użytkowanie"]
[73,"TECHNICZNO-USŁUGOWE","GARAŻE WYBUDOWANE ZE ŚRODKÓW KADRY",{"$f":"DANE!$B75&\" - \"&DANE!$C75","v":"TECHNICZNO-USŁUGOWE - GARAŻE WYBUDOWANE ZE ŚRODKÓW KADRY"},null,null,"Budynek znajduje się w należytym stanie technicznym, zapewniającym dalsze, bezpieczne jego użytkowanie"]
[74,"TECHNICZNO-USŁUGOWE","INNE TECHNICZNO- USŁUGOWE",{"$f":"DANE!$B76&\" - \"&DANE!$C76","v":"TECHNICZNO-USŁUGOWE - INNE TECHNICZNO- USŁUGOWE"},null,null,"Budynek, pomimo tego, iż nie znajduje się w należytym stanie technicznym, nie zagraża życiu lub zdrowiu, bezpieczeństwu mienia bądź środowiska, jednakże wymaga wykonania niezbędnego remontu"]
[75,"TECHNICZNO-USŁUGOWE","INNE WARSZTATY",{"$f":"DANE!$B77&\" - \"&DANE!$C77","v":"TECHNICZNO-USŁUGOWE - INNE WARSZTATY"},null,null,"Budynek, jest w nieodpowiednim stanie technicznym, mogącym zagrażać życiu lub zdrowiu, bezpieczeństwu mienia bądź środowiska - należy sporządzić ekspertyzę jego stanu technicznego"]
[76,"TECHNICZNO-USŁUGOWE","PARKOWE STACJE OBSŁUGI",{"$f":"DANE!$B78&\" - \"&DANE!$C78","v":"TECHNICZNO-USŁUGOWE - PARKOWE STACJE OBSŁUGI"},null,null,"Budynek może zagrażać życiu lub zdrowiu, bezpieczeństwu mienia bądź środowiska - należy zakazać jego użytkowania"]
[77,"TECHNICZNO-USŁUGOWE","STACJE BENZYNOWE",{"$f":"DANE!$B79&\" - \"&DANE!$C79","v":"TECHNICZNO-USŁUGOWE - STACJE BENZYNOWE"},null,null,"Budynek jest użytkowany w sposób zagrażający życiu lub zdrowiu ludzi, bezpieczeństwu mienia bądź środowiska - należy zakazać jego użytkowania"]
[78,"TECHNICZNO-USŁUGOWE","WARSZTATY ELEKTRYCZNE",{"$f":"DANE!$B80&\" - \"&DANE!$C80","v":"TECHNICZNO-USŁUGOWE - WARSZTATY ELEKTRYCZNE"},null,null,"Budynek znajduje się w nieodpowiednim stanie technicznym, bezpośrednio grożącym zawaleniem, niezbędny zakaz jego użytkowania oraz dokonanie rozbiórki budynku lub jego części"]
[79,"TECHNICZNO-USŁUGOWE","WARSZTATY MECHANICZNE",{"$f":"DANE!$B81&\" - \"&DANE!$C81","v":"TECHNICZNO-USŁUGOWE - WARSZTATY MECHANICZNE"}]
[80,"TECHNICZNO-USŁUGOWE","WARSZTATY STOLARSKIE",{"$f":"DANE!$B82&\" - \"&DANE!$C82","v":"TECHNICZNO-USŁUGOWE - WARSZTATY STOLARSKIE"}]
[81,"TECHNICZNO-USŁUGOWE","WIATY",{"$f":"DANE!$B83&\" - \"&DANE!$C83","v":"TECHNICZNO-USŁUGOWE - WIATY"}]